bitfinex-derivatives/quotes_BTCF0:USTF0_20251128
["timestamp","ask_amount","ask_price","bid_price","bid_amount"]
[1764327522249,0.026,91865.0,91864.0,0.08367954]
[1764327522643,0.001,91865.0,91864.0,0.08367954]
[1764327528758,0.05073,91865.0,91864.0,0.08367954]
[1764327533966,0.05073,91865.0,91864.0,0.06699954]
[1764327534263,0.05073,91865.0,91864.0,0.07960954]
[1764327535156,0.001,91865.0,91864.0,0.07960954]
[1764327537253,0.00016332,91874.0,91873.0,0.04855]
[1764327537562,0.00027208,91886.0,91885.0,0.04855]
[1764327537864,0.05000208,91886.0,91885.0,0.04855]
[1764327539764,0.41080208,91886.0,91885.0,0.04855]
[1764327539955,0.38607208,91886.0,91885.0,0.04855]
[1764327540155,0.41080208,91886.0,91885.0,0.04855]
[1764327540948,0.41080208,91886.0,91876.0,0.01141332]
[1764327540949,0.04973,91877.0,91876.0,0.05996332]
[1764327541163,0.04973,91877.0,91876.0,0.04871332]
[1764327541349,0.04973,91877.0,91876.0,0.02372332]
[1764327541666,0.04973,91877.0,91876.0,0.00016332]
[1764327542751,0.04973,91877.0,91876.0,0.02233332]
[1764327543348,0.04973,91877.0,91876.0,0.02333332]
[1764327543563,0.04973,91877.0,91876.0,0.00116332]
[1764327543764,0.50368477,91877.0,91876.0,0.00016332]
[1764327545259,0.47895477,91877.0,91876.0,0.06140101]
[1764327545452,0.38263477,91877.0,91876.0,0.06140101]
[1764327547360,0.74343477,91877.0,91876.0,0.06140101]
[1764327547865,0.74343477,91877.0,91876.0,0.01648101]
[1764327548367,0.91511477,91877.0,91876.0,0.01648101]
[1764327548764,0.91511477,91877.0,91858.0,0.3608]
[1764327548958,0.04527,91859.0,91858.0,0.40572]
[1764327550168,0.04527,91859.0,91858.0,0.41072]
[1764327550568,0.04527,91859.0,91858.0,0.42674475]
[1764327550867,0.04527,91859.0,91858.0,0.42774475]
[1764327555270,0.04527,91859.0,91858.0,0.42674475]
[1764327556177,0.04527,91859.0,91858.0,0.42174475]
[1764327556372,0.04527,91859.0,91858.0,0.42474475]
[1764327556871,0.04527,91859.0,91858.0,0.42374475]
[1764327558461,0.40710332,91868.0,91867.0,0.04407]
[1764327558773,0.77710332,91868.0,91867.0,0.04407]
[1764327560568,0.00016332,91868.0,91867.0,0.04407]
[1764327560768,0.00016332,91868.0,91867.0,0.40487]
[1764327561870,0.02298332,91868.0,91867.0,0.40687]
[1764327562666,0.00016332,91868.0,91867.0,0.40687]
[1764327563172,0.00016332,91868.0,91867.0,0.40487]
[1764327563375,0.00016332,91868.0,91867.0,0.40687]
[1764327563679,0.02298332,91868.0,91867.0,0.40687]
[1764327563876,0.00016332,91868.0,91867.0,0.40687]
[1764327566367,0.40694,91885.0,91884.0,0.05775]
[1764327566972,0.3608,91885.0,91884.0,0.05775]
[1764327570071,0.38362,91885.0,91884.0,0.05775]
[1764327570882,0.40694,91885.0,91884.0,0.05775]
[1764327571195,0.41396,91885.0,91884.0,0.04407]
[1764327571381,0.40694,91885.0,91884.0,0.04407]
[1764327574671,0.40694,91885.0,91884.0,0.06071812]
[1764327582389,0.40694,91885.0,91884.0,0.07420812]
[1764327591100,0.40694,91885.0,91884.0,0.08509242]
[1764327595699,0.3608,91885.0,91884.0,0.08509242]
[1764327595905,0.38386,91885.0,91884.0,0.08509242]
[1764327596094,0.40643,91885.0,91884.0,0.08509242]
[1764327597098,0.38386,91885.0,91884.0,0.08509242]
[1764327597998,0.40643,91885.0,91884.0,0.08509242]
[1764327598198,0.38386,91885.0,91884.0,0.08509242]
[1764327599312,0.3608,91885.0,91884.0,0.08509242]
[1764327599504,0.00027208,91886.0,91885.0,0.0437]
[1764327599700,0.0001623,91894.0,91893.0,0.0437]
[1764327599903,0.0457923,91894.0,91893.0,0.0437]
[1764327601096,0.0232223,91894.0,91893.0,0.12148112]
[1764327601298,0.0457923,91894.0,91893.0,0.12148112]
[1764327601515,0.0446623,91894.0,91893.0,0.12148112]
[1764327602208,0.0446623,91894.0,91893.0,0.0437]
[1764327609518,0.04415,91893.0,91892.0,0.0108834]
[1764327609706,0.0550341,91887.0,91886.0,0.0563337]
[1764327610111,0.04415,91887.0,91886.0,0.0563337]
[1764327610814,0.04415,91887.0,91886.0,0.0108837]
[1764327612019,0.04415,91885.0,91884.0,0.01664812]
[1764327612215,0.0677843,91884.0,91883.0,0.0108843]
[1764327613308,0.0677843,91884.0,91877.0,0.0563351]
[1764327613309,0.0108853,91878.0,91877.0,0.0563351]
[1764327613518,0.0550353,91878.0,91877.0,0.0563351]
[1764327617018,0.0550353,91878.0,91877.0,0.01654992]
[1764327617218,0.05722,91876.0,91867.0,0.0108863]
[1764327617416,0.41802,91876.0,91869.0,0.0108861]
[1764327618218,0.41802,91876.0,91871.0,0.0108858]
[1764327619024,0.41802,91876.0,91875.0,0.04464332]
[1764327619225,0.40527,91876.0,91875.0,0.04464332]
[1764327621433,0.04447,91876.0,91875.0,0.04464332]
[1764327622129,0.04447,91876.0,91875.0,0.06154665]
[1764327623224,0.04447,91876.0,91875.0,0.07551665]
[1764327624436,0.04447,91876.0,91875.0,0.06154665]
[1764327625430,0.04447,91876.0,91875.0,0.07243205]
[1764327628437,0.0553553,91876.0,91875.0,0.07243205]
[1764327628639,0.04447,91876.0,91875.0,0.07243205]
[1764327634828,0.05567,91876.0,91875.0,0.02795205]
[1764327635037,0.05567,91876.0,91875.0,0.04929205]
[1764327635234,0.05567,91876.0,91875.0,0.07119205]
[1764327635842,0.04447,91876.0,91875.0,0.07119205]
[1764327636439,0.05658,91876.0,91875.0,0.01706665]
[1764327637141,0.05658,91876.0,91875.0,0.03840665]
[1764327637335,0.05658,91876.0,91875.0,0.06030665]
[1764327637536,0.04447,91876.0,91875.0,0.06030665]
[1764327639745,0.0553553,91876.0,91875.0,0.06030665]
[1764327641443,0.04447,91876.0,91875.0,0.06030665]
[1764327644945,0.05754,91876.0,91875.0,0.03840665]
[1764327645450,0.05754,91876.0,91875.0,0.01706665]
[1764327651545,0.84834,91876.0,91875.0,0.01706665]
[1764327651750,0.87275141,91876.0,91875.0,0.01706665]
[1764327653559,0.0553969,91862.0,91861.0,0.3608]
[1764327653759,0.0553973,91859.0,91858.0,0.0108874]
[1764327653968,0.0553973,91859.0,91858.0,0.0322274]
[1764327654766,0.0553973,91859.0,91858.0,0.0541274]
[1764327654962,0.0553973,91859.0,91858.0,0.0571274]
[1764327655768,0.0553973,91859.0,91858.0,0.0581274]
[1764327655964,0.0553973,91859.0,91858.0,0.07280234]
[1764327656269,0.0553973,91859.0,91858.0,0.07480234]
[1764327656563,0.04451,91859.0,91858.0,0.07480234]
[1764327656862,0.02252,91859.0,91858.0,0.07480234]
[1764327657066,0.0553965,91866.0,91865.0,0.0541266]
[1764327657269,0.04451,91866.0,91865.0,0.0541266]
[1764327658172,0.04451,91866.0,91865.0,0.0551266]
[1764327658669,0.04451,91866.0,91865.0,0.0541266]
[1764327658864,0.04451,91866.0,91865.0,0.0561266]
[1764327659969,0.02268332,91868.0,91867.0,0.04324]
[1764327660171,0.04467332,91868.0,91867.0,0.04324]
[1764327661467,0.04467332,91868.0,91867.0,0.04524]
[1764327665267,0.04467332,91868.0,91867.0,0.40604]
[1764327666276,0.00016332,91868.0,91867.0,0.40604]
[1764327667776,0.04538332,91868.0,91867.0,0.40604]
[1764327669381,0.04538332,91868.0,91867.0,0.4169263]
[1764327669685,0.00016332,91868.0,91867.0,0.4169263]
[1764327670780,0.02261332,91868.0,91867.0,0.4169263]
[1764327671280,0.00016332,91868.0,91867.0,0.4169263]
[1764327671879,0.02261332,91868.0,91867.0,0.4169263]
[1764327672377,0.02261332,91868.0,91867.0,0.0561263]
[1764327672682,0.00016332,91868.0,91867.0,0.4169263]
[1764327674573,0.04538332,91868.0,91867.0,0.4169263]
[1764327678182,0.05736332,91868.0,91867.0,0.30604]
[1764327678975,0.0108863,91867.0,91865.0,0.0108866]
[1764327679179,0.04522,91866.0,91865.0,0.0108866]
[1764327679382,0.04522,91859.0,91858.0,0.04580494]
[1764327679774,0.04522,91859.0,91858.0,0.06816494]
[1764327680975,0.04522,91859.0,91858.0,0.07016494]
[1764327682278,0.04522,91859.0,91858.0,0.08105234]
[1764327684384,0.05626952,91868.0,91867.0,0.0548763]
[1764327684684,0.09480989,91868.0,91867.0,0.0548763]
[1764327685190,0.07039369,91868.0,91867.0,0.0548763]
[1764327685884,0.07139369,91868.0,91867.0,0.0548763]
[1764327686081,0.02617369,91868.0,91867.0,0.0548763]
[1764327686283,0.00116332,91868.0,91867.0,0.0548763]
[1764327686484,0.02361332,91868.0,91867.0,0.0548763]
[1764327686881,0.00016332,91868.0,91867.0,0.0548763]
[1764327689183,0.00016332,91868.0,91867.0,0.0558763]
[1764327690390,0.04538332,91868.0,91867.0,0.0558763]
[1764327691376,0.00016332,91868.0,91867.0,0.0558763]
[1764327692385,0.02261332,91868.0,91867.0,0.0558763]
[1764327693486,0.04386332,91868.0,91867.0,0.2274763]
[1764327695380,0.00016332,91868.0,91867.0,0.2274763]
[1764327695795,0.02132332,91868.0,91867.0,0.2274763]
[1764327695979,0.00016332,91868.0,91867.0,0.2274763]
[1764327696183,0.024414,91888.0,91880.0,0.0567348]
[1764327696482,0.40468,91881.0,91880.0,0.0567348]
[1764327697284,0.40668,91881.0,91880.0,0.0567348]
[1764327697687,0.3628,91881.0,91880.0,0.0567348]
[1764327698088,0.38396,91881.0,91880.0,0.0567348]
[1764327698388,0.40668,91881.0,91880.0,0.0567348]
[1764327699686,0.40468,91881.0,91880.0,0.0567348]
[1764327700388,0.38196,91881.0,91880.0,0.0567348]
[1764327700589,0.02116,91881.0,91880.0,0.0567348]
[1764327700896,0.04388,91881.0,91880.0,0.0567348]
[1764327702198,0.0001623,91890.0,91880.0,0.0567348]
[1764327702389,0.0001623,91890.0,91889.0,0.0567337]
[1764327702891,0.0213223,91890.0,91889.0,0.0567337]
[1764327703495,0.0440423,91890.0,91889.0,0.0567337]
[1764327703891,0.0460423,91890.0,91889.0,0.4175337]
[1764327704808,0.0021623,91890.0,91889.0,0.4175337]
[1764327709294,0.0573,91908.0,91907.0,0.0567316]
[1764327711600,0.0583,91908.0,91907.0,0.0567316]
[1764327712811,0.3608,91930.0,91925.0,0.05221]
[1764327712991,0.04415196,91926.0,91925.0,0.0630895]
[1764327713194,0.04415196,91926.0,91925.0,0.0108795]
[1764327713401,0.04415196,91926.0,91925.0,0.0567295]
[1764327714601,0.05757196,91926.0,91925.0,0.0567295]
[1764327716903,0.0108787,91932.0,91925.0,0.0567295]
[1764327716904,0.04392,91950.0,91949.0,0.0567266]
[1764327717302,4e-05,91950.0,91949.0,0.0567266]
[1764327718202,0.40468,91957.0,91956.0,0.0567258]
[1764327719402,0.3608,91957.0,91956.0,0.0567258]
[1764327719605,0.04415184,91966.0,91965.0,0.0567247]
[1764327720210,0.02143184,91966.0,91965.0,0.0567247]
[1764327720408,0.00027184,91966.0,91965.0,0.0567247]
[1764327720810,0.40468,91986.0,91985.0,0.04585]
[1764327721001,0.38549627,91986.0,91985.0,0.0567224]
[1764327721206,0.04388,91991.0,91990.0,0.04585]
[1764327721408,0.04388,91991.0,91990.0,0.0335918]
[1764327721714,0.04388,91991.0,91990.0,0.0551818]
[1764327721912,0.04975,91986.0,91985.0,0.3718]
[1764327723318,0.04975,91986.0,91985.0,0.3608]
[1764327723512,0.0606233,91977.0,91976.0,0.00016313]
[1764327724512,0.0106233,91977.0,91976.0,0.00016313]
[1764327724704,0.0106233,91977.0,91967.0,0.3608]
[1764327724705,0.0606244,91968.0,91967.0,0.3608]
[1764327724910,0.4506244,91968.0,91967.0,0.3784336]
[1764327725324,0.04975,91952.0,91951.0,0.41057]
[1764327725631,0.04975,91952.0,91936.0,0.06274]
[1764327725632,0.04444,91937.0,91936.0,0.06274]
[1764327726028,0.0553182,91936.0,91935.0,0.3608]
[1764327726226,0.0553186,91932.0,91931.0,0.01756424]
[1764327726421,0.04444,91928.0,91927.0,0.00016313]
[1764327727335,0.3608,91938.0,91927.0,0.00016313]
[1764327727336,0.0337686,91933.0,91927.0,0.00016313]
[1764327727528,0.4953186,91933.0,91932.0,0.04977]
[1764327727728,0.0553191,91928.0,91927.0,0.00016313]
[1764327728035,0.0553191,91928.0,91927.0,0.00516313]
[1764327728418,0.0553191,91928.0,91927.0,0.00616313]
[1764327729032,0.0553191,91928.0,91927.0,0.00516313]
[1764327729232,0.4353191,91928.0,91927.0,0.00616313]
[1764327729433,0.4353191,91928.0,91927.0,0.00716313]
[1764327729824,0.2353191,91928.0,91927.0,0.00716313]
[1764327730524,0.4453191,91928.0,91927.0,0.00716313]
[1764327731125,0.4453191,91928.0,91927.0,0.00563027]
[1764327731433,0.07750357,91978.0,91970.0,0.0108741]
[1764327731629,0.04975,91978.0,91977.0,0.04977]
[1764327731829,0.0282,91971.0,91970.0,0.06274]
[1764327732127,0.3608,91985.0,91970.0,0.01297]
[1764327732319,0.3608,91985.0,91970.0,0.0238441]
[1764327732627,0.001,91978.0,91973.0,0.0108738]
[1764327732830,0.05075,91978.0,91977.0,0.04977]
[1764327733028,0.05075,91978.0,91977.0,0.02818]
[1764327733236,0.04975,91969.0,91968.0,0.00016313]
[1764327733429,0.04975,91969.0,91968.0,0.04993313]
[1764327733631,0.08636,91978.0,91977.0,0.04151]
[1764327733827,0.08636,91978.0,91977.0,0.08642]
[1764327734029,0.04274,91978.0,91977.0,0.08642]
[1764327734539,0.002,91978.0,91977.0,0.08642]
[1764327734734,0.001,91978.0,91977.0,0.08642]
[1764327735433,0.40154,91985.0,91984.0,0.08642]
[1764327735739,0.44616,91985.0,91984.0,0.08642]
[1764327735940,0.44616,91985.0,91984.0,0.0972925]
[1764327736836,0.02654,91982.0,91979.0,0.010873]
[1764327737038,0.08536,91980.0,91979.0,0.010873]
[1764327739839,0.08636,91980.0,91979.0,0.010873]
[1764327740738,0.08636,91980.0,91979.0,0.097293]
[1764327740929,3e-08,91987.0,91986.0,0.0972923]
[1764327741130,0.07750357,92029.0,91986.0,0.0972923]
[1764327741131,0.3608,92031.0,91990.0,0.03566999]
[1764327741334,0.07750357,92057.0,92054.0,0.0108641]
[1764327741335,0.12103298,92057.0,92054.0,0.0108641]
[1764327741534,0.02654,92080.0,92050.0,1.0]
[1764327741535,0.20219813,92080.0,92055.0,0.4]
[1764327741735,0.02654,92053.0,92051.0,0.0108645]
[1764327741934,0.08536,92051.0,92050.0,1.0]
[1764327742136,0.02654,92053.0,92052.0,0.0108645]
[1764327742335,0.5434,92051.0,92050.0,1.0]
[1764327742536,0.04074,92051.0,92050.0,1.7216]
[1764327742738,0.5434,92051.0,92050.0,1.7216]
[1764327742943,0.08536,92051.0,92050.0,1.7216]
[1764327743533,0.62876,92051.0,92050.0,1.7216]
[1764327743733,0.08536,92042.0,92041.0,0.00016295]
[1764327743930,0.62876,92042.0,92041.0,0.00016295]
[1764327744639,0.6396256,92042.0,92041.0,0.00016295]
[1764327745137,0.6396256,92042.0,92031.0,0.3608]
[1764327745138,1.38773211,92042.0,92031.0,0.44722]
[1764327745440,0.0962268,92032.0,92031.0,0.3608]
[1764327745737,0.08536,92032.0,92031.0,0.3608]
[1764327745941,0.62876,92032.0,92031.0,0.3608]
[1764327746339,0.8018,92032.0,92031.0,0.3608]
[1764327746643,0.8018,92032.0,92031.0,0.3648]
[1764327747037,0.8018,92032.0,92031.0,0.3658]
[1764327747238,0.5434,92032.0,92031.0,0.45222]
[1764327748241,0.58414,92032.0,92031.0,0.45222]
[1764327748430,0.5434,92032.0,92031.0,0.45222]
[1764327748636,0.62876,92032.0,92031.0,0.3658]
[1764327751948,0.80172,92032.0,92031.0,0.3658]
[1764327754150,0.62876,92032.0,92031.0,0.3658]
[1764327754448,1.16168,92032.0,92031.0,0.3658]
[1764327754746,0.86168,92032.0,92031.0,0.3658]
[1764327754951,1.15168,92032.0,92031.0,0.3658]
[1764327755248,0.85168,92032.0,92031.0,0.3658]
[1764327755452,1.23168,92032.0,92031.0,0.3658]
[1764327755853,1.02168,92032.0,92031.0,0.3658]
[1764327756554,0.80168,92032.0,92031.0,0.3658]
[1764327757454,0.80164,92032.0,92031.0,0.3658]
[1764327757644,0.62876,92032.0,92031.0,0.3658]
[1764327757845,0.8016,92032.0,92031.0,0.3658]
[1764327759146,0.82596979,92032.0,92031.0,0.3658]
[1764327759648,0.65312979,92032.0,92031.0,0.3658]
[1764327759850,0.82596979,92032.0,92031.0,0.3658]
[1764327760046,0.82592979,92032.0,92031.0,0.54613]
[1764327760853,0.82592979,92032.0,91946.0,0.09740114]
[1764327760854,0.0326061,92016.0,91986.0,0.3608]
[1764327761053,0.0326061,92016.0,91971.0,0.02479]
[1764327761054,0.0592319,91989.0,91971.0,0.02479]
[1764327761256,0.0592326,91983.0,91980.0,0.01825739]
[1764327761454,0.08360239,91983.0,91982.0,0.20512]
[1764327761957,0.08369756,91983.0,91982.0,0.20512]
[1764327762252,0.0592337,91974.0,91973.0,0.18049304]
[1764327762451,0.2321137,91974.0,91973.0,0.18049304]
[1764327762653,0.1837537,91974.0,91973.0,0.18049304]
[1764327762853,0.0108737,91974.0,91973.0,0.18049304]
[1764327763159,0.1837537,91974.0,91973.0,0.18049304]
[1764327763343,0.7513337,91974.0,91973.0,0.18049304]
[1764327763542,1.16076717,91974.0,91966.0,0.00027184]
[1764327763748,0.0592352,91961.0,91947.0,0.3608]
[1764327763949,0.0350563,91952.0,91951.0,0.19863189]
[1764327764249,0.0592363,91952.0,91951.0,0.18033]
[1764327764452,0.6026363,91952.0,91951.0,0.18033]
[1764327766755,0.6036363,91952.0,91951.0,0.18033]
[1764327768561,0.5444,91952.0,91951.0,0.18033]
[1764327768763,0.71728,91952.0,91951.0,0.18033]
[1764327770654,0.04836,91950.0,91949.0,0.02479]
[1764327770855,0.59176,91950.0,91949.0,0.02479]
[1764327771254,0.59176,91950.0,91949.0,0.20512]
[1764327771864,0.59176,91950.0,91949.0,0.16417]
[1764327772566,0.59176,91950.0,91949.0,0.20512]
[1764327772962,0.7646,91950.0,91949.0,0.20512]
[1764327773967,0.76464,91950.0,91949.0,0.20512]
[1764327774970,0.04836,91948.0,91947.0,0.3608]
[1764327775173,0.0592373,91943.0,91942.0,0.18049313]
[1764327775365,0.6026373,91943.0,91942.0,0.18049313]
[1764327776664,0.6026373,91943.0,91942.0,0.20091453]
[1764327776973,0.7754773,91943.0,91942.0,0.20091453]
[1764327777362,0.7754773,91943.0,91942.0,0.20191453]
[1764327780463,0.5542773,91943.0,91942.0,0.20191453]
[1764327780672,0.7162,91943.0,91942.0,0.56271453]
[1764327781168,0.5434,91943.0,91942.0,0.56271453]
[1764327781369,0.7162,91943.0,91942.0,0.56271453]
[1764327783177,0.5434,91943.0,91942.0,0.56271453]
[1764327783474,0.7162,91943.0,91942.0,0.56271453]
[1764327784979,0.76859,91943.0,91942.0,0.56271453]
[1764327785573,0.76859,91943.0,91942.0,0.55971453]
[1764327785969,0.5434,91943.0,91942.0,0.55971453]
[1764327786278,0.10494313,91961.0,91960.0,0.29706]
[1764327786480,0.27770313,91961.0,91960.0,0.29706]
[1764327787174,0.28857833,91961.0,91960.0,0.29706]
[1764327789277,0.00516313,91961.0,91960.0,0.29706]
[1764327789783,0.11094313,91961.0,91960.0,0.29706]
[1764327789980,0.00616313,91961.0,91960.0,0.29706]
[1764327790277,0.00516313,91961.0,91960.0,0.29706]
[1764327792485,0.00316313,91961.0,91960.0,0.65786]
[1764327795473,0.00316313,91961.0,91960.0,0.6758423]
[1764327796382,0.00316313,91961.0,91960.0,0.7759323]
[1764327798278,0.01403833,91961.0,91960.0,0.7868076]
[1764327799485,0.01403833,91961.0,91960.0,0.7759323]
[1764327801797,0.00316313,91961.0,91960.0,0.7759323]
[1764327805290,0.0108746,91967.0,91966.0,0.43003]
[1764327805993,0.1000446,91967.0,91966.0,0.43003]
[1764327806193,0.0108746,91967.0,91966.0,0.43003]
[1764327806587,0.0108746,91967.0,91966.0,0.4409046]
[1764327807793,0.0138746,91967.0,91966.0,0.4409046]
[1764327807993,0.0138746,91967.0,91966.0,0.43003]
[1764327808486,0.03821887,91967.0,91966.0,0.43003]
[1764327809190,0.22375653,91976.0,91975.0,0.32994]
[1764327809488,0.22375653,91976.0,91966.0,0.43003]
[1764327809489,0.2235945,91967.0,91966.0,0.43003]
[1764327811390,0.5935945,91967.0,91966.0,0.43003]
[1764327811597,0.5945945,91967.0,91966.0,0.43464]
[1764327813195,0.1696152,91961.0,91960.0,0.0179823]
[1764327813395,0.8710452,91961.0,91960.0,0.31421]
[1764327813589,0.9504152,91961.0,91960.0,0.31421]
[1764327813899,0.5304152,91961.0,91960.0,0.31421]
[1764327814697,0.5304152,91961.0,91960.0,0.31521]
[1764327814893,0.9304152,91961.0,91960.0,0.31521]
[1764327816295,0.6104152,91961.0,91960.0,0.31521]
[1764327816600,0.9804152,91961.0,91960.0,0.31521]
[1764327817895,0.9804152,91961.0,91960.0,0.33155619]
[1764327820496,0.9804152,91961.0,91960.0,0.17144619]
[1764327820695,0.9804152,91961.0,91960.0,0.01734619]
[1764327820996,1.00462875,91961.0,91960.0,0.01734619]
[1764327821391,0.1696156,91958.0,91957.0,0.00016313]
[1764327821695,0.15874,91946.0,91945.0,0.4143]
[1764327821894,0.599617,91946.0,91945.0,0.4143]
[1764327824698,0.599617,91946.0,91945.0,0.4193]
[1764327826505,0.599617,91946.0,91945.0,0.43634634]
[1764327828898,0.599617,91946.0,91945.0,0.02204634]
[1764327829704,0.1696181,91937.0,91936.0,0.00016313]
[1764327830008,0.1696181,91937.0,91936.0,0.01675882]
[1764327830009,0.7120181,91937.0,91936.0,0.01675882]
[1764327830198,0.7120181,91937.0,91936.0,0.00016313]
[1764327830401,0.1696186,91932.0,91931.0,9.95e-05]
[1764327830599,0.5996186,91932.0,91931.0,9.95e-05]
[1764327831506,0.9604186,91932.0,91931.0,9.95e-05]
[1764327831713,0.9604186,91932.0,91926.0,0.00027196]
[1764327831714,0.1696192,91927.0,91926.0,0.01696622]
[1764327832012,0.7120192,91927.0,91926.0,0.01696622]
[1764327832809,0.1696197,91923.0,91922.0,0.00016313]
[1764327833011,0.1696197,91923.0,91922.0,1e-08]
[1764327833012,0.92049795,91923.0,91922.0,1e-08]
[1764327834102,0.92749795,91923.0,91922.0,1e-08]
[1764327834305,0.92849795,91923.0,91922.0,1e-08]
[1764327835102,0.1696214,91909.0,91903.0,0.10232]
[1764327835301,0.7721239,91909.0,91903.0,0.10232]
[1764327835698,0.0108832,91894.0,91891.0,0.31421]
[1764327835899,0.5304218,91905.0,91904.0,0.31421]
[1764327836111,2.37298915,91905.0,91904.0,0.31421]
[1764327836502,2.37298915,91905.0,91903.0,0.10232]
[1764327836704,0.15874,91904.0,91903.0,0.25642]
[1764327836903,0.58874,91904.0,91903.0,0.41653]
[1764327837102,0.15874,91896.0,91895.0,0.00016323]
[1764327837307,0.75122,91896.0,91895.0,0.31437323]
[1764327838804,0.75133133,91896.0,91895.0,0.00016323]
[1764327840206,0.77551133,91896.0,91895.0,0.00016323]
[1764327840609,0.1696256,91873.0,91872.0,0.77733]
[1764327840916,0.76133953,91873.0,91872.0,0.77733]
[1764327841408,0.76133953,91873.0,91872.0,0.3608]
[1764327841615,1.32419953,91873.0,91837.0,0.3608]
[1764327841908,0.22089586,91862.0,91856.0,0.0961]
[1764327842103,0.0108877,91856.0,91848.0,0.0961]
[1764327842299,0.0108877,91856.0,91832.0,0.0961]
[1764327842300,0.0108886,91848.0,91832.0,0.0961]
[1764327842503,0.1726,91847.0,91832.0,0.0961]
[1764327842710,0.0108904,91833.0,91832.0,0.0961]
[1764327842913,0.010891,91828.0,91818.0,0.0961]
[1764327843100,0.3608,91819.0,91818.0,0.38659]
[1764327843300,0.7708,91819.0,91818.0,0.38659]
[1764327843522,1.1316,91819.0,91818.0,0.38659]
[1764327843707,1.13169844,91819.0,91818.0,0.38659]
[1764327843902,0.77089844,91819.0,91818.0,0.38659]
[1764327845214,0.77289844,91819.0,91818.0,0.38659]
[1764327845613,0.77089844,91819.0,91818.0,0.38659]
[1764327845815,0.77489844,91819.0,91818.0,0.38659]
[1764327846211,0.78579044,91819.0,91818.0,0.38659]
[1764327846411,0.77489844,91819.0,91818.0,0.38659]
[1764327846811,0.53765844,91819.0,91818.0,0.38659]
[1764327847207,0.36489844,91819.0,91818.0,0.38659]
[1764327847608,0.17276,91829.0,91828.0,0.29049]
[1764327847819,0.57276,91829.0,91828.0,0.29049]
[1764327848713,0.57387046,91829.0,91828.0,0.29049]
[1764327848920,0.00811046,91829.0,91828.0,0.29049]
[1764327849316,0.00011046,91829.0,91828.0,0.29049]
[1764327849518,0.00611046,91829.0,91828.0,0.29049]
[1764327849918,0.00111046,91829.0,91828.0,0.29049]
[1764327850121,0.00511046,91829.0,91828.0,0.29049]
[1764327852019,0.42511046,91829.0,91818.0,0.0961]
[1764327852219,0.0108918,91821.0,91820.0,0.29049]
[1764327852418,0.3908918,91821.0,91818.0,0.0961]
[1764327852618,0.3908918,91821.0,91809.0,0.11307071]
[1764327852619,0.010892,91819.0,91809.0,0.11307071]
[1764327852819,0.400892,91819.0,91817.0,0.50387]
[1764327853222,0.010893,91811.0,91809.0,0.40356071]
[1764327853416,0.390893,91811.0,91809.0,0.40356071]
[1764327853821,0.0108935,91807.0,91803.0,0.19307]
[1764327854015,0.0108935,91807.0,91803.0,0.34049]
[1764327854016,0.00011046,91806.0,91803.0,0.34049]
[1764327854216,0.00011046,91806.0,91805.0,0.29049]
[1764327854424,0.00011046,91806.0,91805.0,0.3013837]
[1764327855321,0.00011046,91806.0,91805.0,0.14307]
[1764327855322,0.39011046,91806.0,91805.0,0.14307]
[1764327855621,0.00011046,91806.0,91805.0,0.29049]
[1764327855827,0.00011046,91806.0,91805.0,0.29149]
[1764327859316,0.42011046,91806.0,91805.0,0.29149]
[1764327859517,0.00011046,91806.0,91805.0,0.29149]
[1764327859723,0.1836914,91825.0,91824.0,0.29049]
[1764327859926,0.5836914,91825.0,91824.0,0.29049]
[1764327860926,0.6567314,91825.0,91824.0,0.29049]
[1764327861519,0.6567314,91825.0,91824.0,0.14307]
[1764327862534,0.6567314,91825.0,91820.0,0.0961]
[1764327862535,0.0829318,91821.0,91820.0,0.25986018]
[1764327862735,0.4629318,91821.0,91820.0,0.25986018]
[1764327863429,0.4269118,91821.0,91820.0,0.41483018]
[1764327863623,0.3908918,91821.0,91820.0,0.41483018]
[1764327864033,0.3918918,91821.0,91820.0,0.41483018]
[1764327864233,0.381,91821.0,91820.0,0.41483018]
[1764327867231,0.3918918,91821.0,91820.0,0.41483018]
[1764327867438,0.381,91821.0,91820.0,0.41483018]
[1764327868042,0.4048595,91821.0,91820.0,0.41483018]
[1764327869838,0.4408795,91821.0,91820.0,0.41483018]
[1764327870743,0.0248595,91821.0,91820.0,0.41483018]
[1764327871747,0.0248595,91821.0,91820.0,0.77563018]
[1764327875659,0.0357513,91821.0,91820.0,0.77563018]
[1764327876040,0.0248595,91821.0,91820.0,0.77563018]
[1764327876350,0.0615795,91821.0,91820.0,0.41483018]
[1764327876645,0.0476129,91812.0,91811.0,0.3608]
[1764327876946,0.5214724,91812.0,91811.0,0.3608]
[1764327877551,0.0476138,91804.0,91803.0,0.20308]
[1764327877846,0.5114733,91804.0,91803.0,0.05]
[1764327878240,0.5114733,91804.0,91803.0,0.20308]
[1764327878845,0.5114733,91804.0,91803.0,0.35109]
[1764327879439,0.5114733,91804.0,91803.0,0.05]
[1764327879645,0.0476151,91793.0,91792.0,0.39685]
[1764327879840,0.5214746,91793.0,91792.0,0.39685]
[1764327880242,0.5214746,91793.0,91792.0,0.09576]
[1764327880649,0.4738595,91793.0,91792.0,0.39685]
[1764327880851,0.5105795,91793.0,91792.0,0.40185]
[1764327881052,0.4738595,91793.0,91792.0,0.40185]
[1764327882442,0.2138595,91793.0,91792.0,0.40185]
[1764327882642,0.2138595,91793.0,91792.0,0.76265]
[1764327883154,0.0238595,91793.0,91792.0,0.76265]
[1764327883356,0.0108946,91798.0,91797.0,0.30109]
[1764327883553,0.40481667,91798.0,91797.0,0.30109]
[1764327884655,0.39392207,91798.0,91797.0,0.30109]
[1764327884841,0.39392207,91798.0,91797.0,0.30409]
[1764327886438,0.39392207,91798.0,91797.0,0.3149846]
[1764327886439,0.02392207,91798.0,91797.0,0.3149846]
[1764327887442,0.06064207,91798.0,91797.0,0.30409]
[1764327888052,0.42672,91798.0,91797.0,0.30409]
[1764327889555,0.4084135,91807.0,91806.0,0.30109]
[1764327889751,0.79244227,91807.0,91806.0,0.30109]
[1764327890949,0.79244227,91807.0,91806.0,0.30209]
[1764327891149,0.75572227,91807.0,91806.0,0.30209]
[1764327891353,0.74482877,91807.0,91806.0,0.30209]
[1764327891855,0.74482877,91807.0,91806.0,0.3129836]
[1764327894255,0.36,91807.0,91806.0,0.3129836]
[1764327894456,0.36,91807.0,91806.0,0.30209]